fUSD/lending_fUSD_20260430
["ID","MTS","AMOUNT","RATE_DAILY","PERIOD"]
[421366823,1777500641000,-462.29239414,0.00037928,2]
[421366822,1777500641000,-300.0,0.00037928,2]
[421366812,1777500641000,-300.0,0.00037928,2]
[421366814,1777500641000,-300.0,0.00037928,2]
[421366813,1777500641000,-839.32738085,0.00037928,2]
[421366816,1777500641000,-300.0,0.00037928,2]
[421366815,1777500641000,-1790.27047416,0.00037928,2]
[421366817,1777500641000,-342.75795842,0.00037928,2]
[421366818,1777500641000,-1143.28605913,0.00037928,2]
[421366808,1777500641000,-300.0,0.00037928,2]
[421366821,1777500641000,-309.84039163,0.00037928,2]
[421366819,1777500641000,-308.5418779,0.00037928,2]
[421366830,1777500641000,-300.0,0.00037928,2]
[421366832,1777500641000,-308.79275606,0.00037928,2]
[421366834,1777500641000,-419.85965851,0.00037928,2]
[421366825,1777500641000,-433.17313298,0.00037928,2]
[421366826,1777500641000,-450.3651763,0.00037928,2]
[421366824,1777500641000,-300.0,0.00037928,2]
[421366827,1777500641000,-300.0,0.00037928,2]
[421366828,1777500641000,-300.0,0.00037928,2]
[421366833,1777500641000,-300.0,0.00037928,2]
[421366829,1777500641000,-300.0,0.00037928,2]
[421366835,1777500641000,-300.0,0.00037928,2]
[421366888,1777500642000,-300.0,0.00037928,2]
[421366887,1777500642000,-300.0,0.00037928,2]
[421366896,1777500642000,-1063.30858973,0.00037928,2]
[421366890,1777500642000,-491.01442266,0.00037928,2]
[421366895,1777500642000,-525.95885708,0.00037928,2]
[421366904,1777500642000,-839.32738085,0.00037928,2]
[421366903,1777500642000,-300.0,0.00037928,2]
[421366898,1777500642000,-302.03006712,0.00037928,2]
[421366899,1777500642000,-723.61897705,0.00037928,2]
[421366894,1777500642000,-300.0,0.00037928,2]
[421366893,1777500642000,-602.42963136,0.00037928,2]
[421366900,1777500642000,-300.0,0.00037928,2]
[421366905,1777500642000,-585.42181549,0.00037928,2]
[421366897,1777500642000,-890.38635649,0.00037928,2]
[421366902,1777500642000,-300.0,0.00037928,2]
[421366907,1777500642000,-300.0,0.00037928,2]
[421366906,1777500642000,-1790.27047416,0.00037928,2]
[421366918,1777500642000,-300.0,0.00037928,2]
[421366908,1777500642000,-342.75795842,0.00037928,2]
[421366909,1777500642000,-1143.28605913,0.00037928,2]
[421366889,1777500642000,-300.0,0.00037928,2]
[421366910,1777500642000,-308.5418779,0.00037928,2]
[421366901,1777500642000,-300.0,0.00037928,2]
[421366883,1777500642000,-419.85965851,0.00037928,2]
[421366874,1777500642000,-433.17313298,0.00037928,2]
[421366884,1777500642000,-300.0,0.00037928,2]
[421366917,1777500642000,-300.0,0.00037928,2]
[421366864,1777500642000,-300.0,0.00037928,2]
[421366866,1777500642000,-300.0,0.00037928,2]
[421366865,1777500642000,-342.75795842,0.00037928,2]
[421366868,1777500642000,-1143.28605913,0.00037928,2]
[421366867,1777500642000,-308.5418779,0.00037928,2]
[421366869,1777500642000,-861.48587114,0.00037928,2]
[421366870,1777500642000,-309.84039163,0.00037928,2]
[421366871,1777500642000,-556.55947744,0.00037928,2]
[421366873,1777500642000,-300.0,0.00037928,2]
[421366886,1777500642000,-300.0,0.00037928,2]
[421366872,1777500642000,-462.29239414,0.00037928,2]
[421366878,1777500642000,-300.0,0.00037928,2]
[421366877,1777500642000,-300.0,0.00037928,2]
[421366876,1777500642000,-300.0,0.00037928,2]
[421366879,1777500642000,-300.0,0.00037928,2]
[421366881,1777500642000,-308.79275606,0.00037928,2]
[421366880,1777500642000,-482.43942189,0.00037928,2]
[421366892,1777500642000,-300.0,0.00037928,2]
[421366882,1777500642000,-300.0,0.00037928,2]
[421366891,1777500642000,-300.0,0.00037928,2]
[421366885,1777500642000,-1090.98668708,0.00037928,2]
[421366875,1777500642000,-450.3651763,0.00037928,2]
[421366911,1777500642000,-861.48587114,0.00037928,2]
[421366937,1777500642000,-937.14429812,0.00038587,120]
[421366916,1777500642000,-450.3651763,0.00037928,2]
[421366938,1777500642000,-162.75,0.00038668,2]
[421366940,1777500642000,-934.04274622,0.0003903,108]
[421366912,1777500642000,-309.84039163,0.00037928,2]
[421366956,1777500642000,-227.44,0.00040795,60]
[421366946,1777500642000,-500.0,0.00039726,120]
[421366949,1777500642000,-150.0,0.00040095,120]
[421366950,1777500642000,-150.0,0.00040095,120]
[421366951,1777500642000,-162.75,0.00040142,2]
[421366952,1777500642000,-1646.48850567,0.00040428,2]
[421366947,1777500642000,-492.55,0.00040051,26]
[421366941,1777500642000,-957.0,0.00039178,5]
[421366948,1777500642000,-500.0,0.00040054,120]
[421366955,1777500642000,-288.666,0.0004079,120]
[421366954,1777500642000,-500.0,0.00040767,120]
[421366957,1777500642000,-210.84,0.00040795,60]
[421366959,1777500642000,-36462.0,0.00040851,120]
[421366960,1777500642000,-686.31899888,0.00040852,28]
[421366962,1777500642000,-1815.57889775,0.0004089,42]
[421366964,1777500642000,-46510.65412131,0.00040891,120]
[421366961,1777500642000,-500.0,0.00040859,25]
[421366963,1777500642000,-50000.0,0.0004089,120]
[421366958,1777500642000,-50000.0,0.0004085,120]
[421366953,1777500642000,-1005.19458187,0.00040554,120]
[421366942,1777500642000,-500.0,0.00039178,120]
[421366945,1777500642000,-500.0,0.00039726,120]
[421366936,1777500642000,-1408.0,0.00038525,120]
[421366914,1777500642000,-300.0,0.00037928,2]
[421366913,1777500642000,-462.29239414,0.00037928,2]
[421366915,1777500642000,-433.17313298,0.00037928,2]
[421366919,1777500642000,-300.0,0.00037928,2]
[421366930,1777500642000,-300.0,0.00037928,2]
[421366920,1777500642000,-482.43942189,0.00037928,2]
[421366944,1777500642000,-150.0,0.00039579,2]
[421366921,1777500642000,-308.79275606,0.00037928,2]
[421366923,1777500642000,-497.42707298,0.00037928,2]
[421366924,1777500642000,-300.0,0.00037928,2]
[421366922,1777500642000,-300.0,0.00037928,2]
[421366931,1777500642000,-300.0,0.00037928,2]
[421366929,1777500642000,-300.0,0.00037928,2]
[421366928,1777500642000,-300.0,0.00037928,2]
[421366927,1777500642000,-300.0,0.00037928,2]
[421366926,1777500642000,-300.0,0.00037928,2]
[421366932,1777500642000,-491.01442266,0.00037928,2]
[421366933,1777500642000,-300.0,0.00037928,2]
[421366934,1777500642000,-300.0,0.00037928,2]
[421366943,1777500642000,-192.0,0.00039531,120]
[421366939,1777500642000,-2000.0,0.0003875,2]
[421366925,1777500642000,-1090.98668708,0.00037928,2]
[421366935,1777500642000,-500.0,0.00038356,120]
[421366991,1777500643000,-3216.96759222,0.0004092,120]
[421366988,1777500643000,-542.0,0.000409,30]
[421366987,1777500643000,-7708.18904005,0.000409,25]
[421366986,1777500643000,-1449.37561532,0.00040891,120]
[421366985,1777500643000,-602.42963136,0.00037928,2]
[421366978,1777500643000,-1141.47131779,0.00040891,120]
[421366983,1777500643000,-654.4863709,0.00034673,30]
[421366976,1777500643000,-601.96204655,0.00040891,120]
[421366973,1777500643000,-296.53689903,0.00040891,120]
[421366989,1777500643000,-8423.04707038,0.0004091,4]
[421366984,1777500643000,-971.5136291,0.00034673,30]
[421366990,1777500643000,-11603.44501379,0.0004092,120]
[421367001,1777500643000,-25269.1412111,0.0004092,4]
[421366994,1777500643000,-1139.40348521,0.0004092,120]
[421366992,1777500643000,-453.0,0.00037928,30]
[421367003,1777500643000,-937.0,0.0004093,5]
[421367004,1777500643000,-13246.07775766,0.0004094,4]
[421367000,1777500643000,-26878.18390878,0.0004092,120]
[421366996,1777500643000,-300.0,0.00037928,2]
[421367002,1777500643000,-50000.0,0.0004093,120]
[421366997,1777500643000,-525.95885708,0.00037928,2]
[421366998,1777500643000,-1806.0,0.00038668,30]
[421366995,1777500643000,-152.0,0.00030806,7]
[421366993,1777500643000,-7162.0,0.0004092,120]
[421366999,1777500643000,-419.0,0.00038668,30]
[421367007,1777500645000,-1097.65900378,0.00040428,2]
[421367006,1777500645000,-890.38635649,0.00037928,2]
[421367005,1777500645000,-1063.30858973,0.00037928,2]
[421367009,1777500645000,-692.0,0.0004094,60]
[421367010,1777500645000,-1105.3313341,0.0004094,4]
[421367008,1777500645000,-1509.0,0.0004093,60]
[421367014,1777500645000,-10145.03424842,0.0004094,4]
[421367013,1777500645000,-1002.55549091,0.0004094,4]
[421367011,1777500645000,-1384.0,0.0004094,60]
[421367015,1777500645000,-5110.37493883,0.0004094,4]
[421367012,1777500645000,-576.0,0.0004094,60]
[421367016,1777500645000,-1685.999998,0.0004094,4]
[421367018,1777500665000,-1716.96759222,0.00030137,117]
[421367017,1777500665000,-1500.0,0.00027397,2]
[421367019,1777501064000,327.9870533,0.0003013,120]
[421367020,1777501145000,-250.0,0.00013,2]
[421367021,1777501145000,-1466.96759222,0.0001365,2]
[421367023,1777501146000,-466.96759222,0.000143,2]
[421367022,1777501146000,-1033.03240778,0.0001365,2]
[421367026,1777501799000,150.0,0.00014912,30]
[421367025,1777501799000,150.0,0.00013469,30]
[421367028,1777501831000,-1084.89567065,0.00011899,2]
[421367031,1777501831000,-271.85285965,0.00011999,2]
[421367029,1777501831000,-169.1971824,0.00011999,2]
[421367030,1777501831000,-330.8028176,0.00011999,2]
[421367032,1777501831000,-7442.889589,0.00012,2]
[421367035,1777501831000,-3383.42896817,0.00012,2]
[421367034,1777501831000,-2318.46368358,0.00012,2]
[421367036,1777501831000,-27614.28295567,0.00012,2]
[421367039,1777501831000,-7393.85317137,0.00012,2]
[421367038,1777501831000,-687.0,0.00012,2]
[421367037,1777501831000,-420.0,0.00012,2]
[421367033,1777501831000,-2350.76077348,0.00012,2]
[421367062,1777501837000,-6275.55825757,0.00012,2]
[421367061,1777501837000,-10915.79728157,0.00012,2]
[421367059,1777501837000,-339.88265974,0.00012,2]
[421367060,1777501837000,-5713.63644433,0.00012,2]
[421367058,1777501837000,-9561.50740717,0.00012,2]
[421367057,1777501837000,-467.4334257,0.00012,2]
[421367138,1777501839000,-878.77555066,0.00012,2]
[421367137,1777501839000,-3217.02463073,0.00012,2]
[421367135,1777501839000,-335.18001523,0.00012,2]
[421367136,1777501839000,-420.35104813,0.00012,2]
[421367139,1777501840000,-550.0,0.00012,2]
[421367150,1777501842000,-500.0,0.00013699,2]
[421367149,1777501842000,-372501.46091721,0.00012,2]
[421367154,1777501842000,-500.0,0.00013699,2]
[421367155,1777501842000,-500.0,0.00013699,2]
[421367152,1777501842000,-500.0,0.00013699,2]
[421367153,1777501842000,-500.0,0.00013699,2]
[421367156,1777501842000,-500.0,0.00013699,2]
[421367151,1777501842000,-500.0,0.00013699,2]
[421367157,1777501842000,-500.0,0.00013699,2]
[421367160,1777501842000,-1711.92335997,0.000143,2]
[421367158,1777501842000,-404.77336951,0.00013699,2]
[421367161,1777501842000,-48288.07664003,0.000143,2]
[421367162,1777501842000,-300.0,0.00015,2]
[421367148,1777501842000,-314.69200734,0.00012,2]
[421367164,1777501842000,-1716.96759222,0.00016115,2]
[421367159,1777501842000,-500.0,0.00013699,2]
[421367166,1777501842000,-160.0,0.00016654,2]
[421367165,1777501842000,-150.0,0.00016355,30]
[421367180,1777501842000,-1500.0,0.00027397,2]
[421367172,1777501842000,-152.0,0.00022,2]
[421367177,1777501842000,-169.2,0.00025,2]
[421367175,1777501842000,-1000.0,0.00023918,2]
[421367173,1777501842000,-172.95,0.00022431,2]
[421367174,1777501842000,-152.0,0.00023,2]
[421367176,1777501842000,-152.0,0.00024,2]
[421367170,1777501842000,-152.0,0.0002,2]
[421367179,1777501842000,-162.31979731,0.00026763,2]
[421367171,1777501842000,-152.0,0.00021,2]
[421367168,1777501842000,-150.0,0.00017798,30]
[421367169,1777501842000,-852.46464832,0.00019728,2]
[421367163,1777501842000,-2500.0,0.00016115,2]
[421367178,1777501842000,-773.54773182,0.000264,2]
[421367167,1777501842000,-350.0,0.00017,2]
[421367218,1777501843000,-152.0,0.00036081,30]
[421367221,1777501843000,-250.34116381,0.00036838,7]
[421367229,1777501843000,-152.0,0.00037081,30]
[421367223,1777501843000,-150.0,0.00036838,7]
[421367220,1777501843000,-150.0,0.00036838,7]
[421367214,1777501843000,-152.0,0.00035081,30]
[421367213,1777501843000,-1500.0,0.00034795,2]
[421367211,1777501843000,-150.0,0.0003419,2]
[421367212,1777501843000,-634.702,0.00034572,39]
[421367210,1777501843000,-152.0,0.00034081,30]
[421367222,1777501843000,-150.0,0.00036838,7]
[421367219,1777501843000,-150.0,0.00036838,30]
[421367230,1777501843000,-3417.89533295,0.00037101,4]
[421367237,1777501843000,-500.0,0.0003711,15]
[421367226,1777501843000,-3017.87,0.00037002,10]
[421367225,1777501843000,-150.0,0.00036838,7]
[421367228,1777501843000,-54144.9453,0.00037021,2]
[421367227,1777501843000,-3417.89533295,0.00037011,4]
[421367231,1777501843000,-500.0,0.0003711,15]
[421367233,1777501843000,-188.53431527,0.0003711,15]
[421367209,1777501843000,-200.0,0.000334,2]
[421367243,1777501843000,-151.0,0.00037111,7]
[421367234,1777501843000,-329.23062387,0.0003711,15]
[421367241,1777501843000,-354.20679792,0.0003711,15]
[421367235,1777501843000,-179.87385721,0.0003711,15]
[421367232,1777501843000,-500.0,0.0003711,15]
[421367239,1777501843000,-600.33639881,0.0003711,15]
[421367224,1777501843000,-170.42829203,0.00036838,7]
[421367208,1777501843000,-2000.0,0.00033379,2]
[421367202,1777501843000,-166.66,0.00031244,2]
[421367217,1777501843000,-150.0,0.00035899,2]
[421367248,1777501843000,-151.0,0.00037111,7]
[421367181,1777501843000,-1000.0,0.00027398,2]
[421367192,1777501843000,-1000.0,0.00029759,7]
[421367191,1777501843000,-1000.0,0.00029759,2]
[421367182,1777501843000,-521.18700814,0.00027603,2]
[421367183,1777501843000,-1000.0,0.00027854,7]
[421367188,1777501843000,-150.0,0.00029534,2]
[421367187,1777501843000,-1000.0,0.00029223,7]
[421367184,1777501843000,-1000.0,0.0002831,30]
[421367186,1777501843000,-1000.0,0.00028767,2]
[421367189,1777501843000,-363.36656485,0.00029561,2]
[421367185,1777501843000,-201.6462624,0.00028729,2]
[421367190,1777501843000,-1000.0,0.0002968,30]
[421367206,1777501843000,-150.0,0.00032562,2]
[421367193,1777501843000,-1000.0,0.00029759,30]
[421367196,1777501843000,-500.0,0.00030046,30]
[421367195,1777501843000,-1610.0,0.00030046,30]
[421367203,1777501843000,-318.1636096,0.00031594,60]
[421367204,1777501843000,-152.0,0.00032081,30]
[421367205,1777501843000,-270.25,0.00032243,2]
[421367200,1777501843000,-150.0,0.00031011,2]
[421367197,1777501843000,-1000.0,0.00030136,2]
[421367198,1777501843000,-200.0,0.00030137,40]
[421367199,1777501843000,-500.0,0.0003032,30]
[421367201,1777501843000,-152.0,0.00031081,30]
[421367216,1777501843000,-280.8,0.00035848,3]
[421367207,1777501843000,-152.0,0.00033081,30]
[421367215,1777501843000,-280.8,0.00035848,3]
[421367194,1777501843000,-727.0,0.00030046,30]
[421367246,1777501843000,-151.0,0.00037111,7]
[421367274,1777501843000,-300.0,0.0003794,2]
[421367250,1777501843000,-151.0,0.00037111,7]
[421367292,1777501843000,-300.0,0.0003794,2]
[421367284,1777501843000,-861.48587114,0.0003794,2]
[421367281,1777501843000,-342.75795842,0.0003794,2]
[421367293,1777501843000,-482.43942189,0.0003794,2]
[421367286,1777501843000,-462.29239414,0.0003794,2]
[421367285,1777501843000,-309.84039163,0.0003794,2]
[421367288,1777501843000,-433.17313298,0.0003794,2]
[421367295,1777501843000,-300.0,0.0003794,2]
[421367294,1777501843000,-308.79275606,0.0003794,2]
[421367296,1777501843000,-300.0,0.0003794,2]
[421367297,1777501843000,-1090.98668708,0.0003794,2]
[421367301,1777501843000,-491.01442266,0.0003794,2]
[421367299,1777501843000,-300.0,0.0003794,2]
[421367291,1777501843000,-300.0,0.0003794,2]
[421367298,1777501843000,-300.0,0.0003794,2]
[421367303,1777501843000,-602.42963136,0.0003794,2]
[421367302,1777501843000,-300.0,0.0003794,2]
[421367300,1777501843000,-300.0,0.0003794,2]
[421367305,1777501843000,-525.95885708,0.0003794,2]
[421367307,1777501843000,-890.38635649,0.0003794,2]
[421367306,1777501843000,-1063.30858973,0.0003794,2]
[421367308,1777501843000,-302.03006712,0.0003794,2]
[421367312,1777501843000,-300.0,0.0003794,2]
[421367309,1777501843000,-723.61897705,0.0003794,2]
[421367311,1777501843000,-300.0,0.0003794,2]
[421367314,1777501843000,-839.32738085,0.0003794,2]
[421367310,1777501843000,-300.0,0.0003794,2]
[421367244,1777501843000,-151.0,0.00037111,7]
[421367304,1777501843000,-300.0,0.0003794,2]
[421367289,1777501843000,-450.3651763,0.0003794,2]
[421367287,1777501843000,-300.0,0.0003794,2]
[421367283,1777501843000,-308.5418779,0.0003794,2]
[421367262,1777501843000,-150.0,0.00037121,2]
[421367255,1777501843000,-200.0,0.00037121,2]
[421367267,1777501843000,-274.62536189,0.00037545,104]
[421367261,1777501843000,-1000.0,0.00037121,120]
[421367260,1777501843000,-2000.0,0.00037121,2]
[421367259,1777501843000,-1036.8,0.00037121,120]
[421367263,1777501843000,-150.0,0.00037121,2]
[421367266,1777501843000,-413.67007868,0.00037523,104]
[421367290,1777501843000,-300.0,0.0003794,2]
[421367257,1777501843000,-5000.0,0.00037121,2]
[421367264,1777501843000,-1000.0,0.00037121,2]
[421367258,1777501843000,-2500.0,0.00037121,120]
[421367252,1777501843000,-151.0,0.00037111,7]
[421367265,1777501843000,-3417.89533295,0.00037223,4]
[421367254,1777501843000,-200.0,0.00037121,2]
[421367272,1777501843000,-302.03006712,0.0003794,2]
[421367268,1777501843000,-151.0,0.00037817,30]
[421367280,1777501843000,-300.0,0.0003794,2]
[421367277,1777501843000,-300.0,0.0003794,2]
[421367276,1777501843000,-300.0,0.0003794,2]
[421367278,1777501843000,-839.32738085,0.0003794,2]
[421367313,1777501843000,-300.0,0.0003794,2]
[421367282,1777501843000,-1143.28605913,0.0003794,2]
[421367273,1777501843000,-723.61897705,0.0003794,2]
[421367275,1777501843000,-300.0,0.0003794,2]
[421367270,1777501843000,-800.57109369,0.00037928,2]
[421367269,1777501843000,-1032.75392759,0.00037928,2]
[421367279,1777501843000,-1790.27047416,0.0003794,2]
[421367271,1777501843000,-6835.7906659,0.0003793,4]
[421367328,1777501844000,-482.43942189,0.0003794,2]
[421367324,1777501844000,-450.3651763,0.0003794,2]
[421367323,1777501844000,-433.17313298,0.0003794,2]
[421367321,1777501844000,-462.29239414,0.0003794,2]
[421367322,1777501844000,-300.0,0.0003794,2]
[421367326,1777501844000,-300.0,0.0003794,2]
[421367318,1777501844000,-308.5418779,0.0003794,2]
[421367319,1777501844000,-861.48587114,0.0003794,2]
[421367317,1777501844000,-1143.28605913,0.0003794,2]
[421367316,1777501844000,-342.75795842,0.0003794,2]
[421367315,1777501844000,-1790.27047416,0.0003794,2]
[421367338,1777501844000,-162.75,0.00038235,2]
[421367325,1777501844000,-300.0,0.0003794,2]
[421367336,1777501844000,-491.01442266,0.0003794,2]
[421367320,1777501844000,-309.84039163,0.0003794,2]
[421367329,1777501844000,-308.79275606,0.0003794,2]
[421367335,1777501844000,-300.0,0.0003794,2]
[421367343,1777501844000,-136715.813318,0.00040093,4]
[421367340,1777501844000,-152.99,0.0004,120]
[421367341,1777501844000,-907.78944888,0.00040093,42]
[421367337,1777501844000,-150.0,0.00038203,7]
[421367344,1777501844000,-395338.41983391,0.00040103,2]
[421367342,1777501844000,-500.0,0.00040093,120]
[421367330,1777501844000,-300.0,0.0003794,2]
[421367334,1777501844000,-300.0,0.0003794,2]
[421367339,1777501844000,-150.0,0.00039567,7]
[421367331,1777501844000,-1090.98668708,0.0003794,2]
[421367327,1777501844000,-300.0,0.0003794,2]
[421367333,1777501844000,-300.0,0.0003794,2]
[421367332,1777501844000,-300.0,0.0003794,2]
[421367354,1777501846000,-1000.0,0.00029223,7]
[421367349,1777501846000,-82.92156154,0.00027398,2]
[421367348,1777501846000,-507.0,0.00027137,2]
[421367350,1777501846000,-917.07843846,0.00027398,2]
[421367352,1777501846000,-1000.0,0.0002831,30]
[421367353,1777501846000,-1000.0,0.00028767,2]
[421367351,1777501846000,-1000.0,0.00027854,7]
[421367355,1777501846000,-1000.0,0.00029746,2]
[421367366,1777501846000,-150.0,0.00039579,2]
[421367356,1777501846000,-1000.0,0.00029746,7]
[421367357,1777501846000,-1000.0,0.00029746,30]
[421367358,1777501846000,-507.0,0.00031943,7]
[421367362,1777501846000,-150.0,0.00037694,2]
[421367361,1777501846000,-507.0,0.00036748,12]
[421367359,1777501846000,-304.40317346,0.00035848,3]
[421367360,1777501846000,-304.40317346,0.00035848,3]
[421367364,1777501846000,-300.0,0.0003794,2]
[421367368,1777501846000,-311.35377226,0.0002968,30]
[421367367,1777501846000,-65510.56458572,0.00040103,2]
[421367448,1777502281000,449.04785907,0.000297,120]
[421367455,1777503031000,-45364.01137319,0.00026,10]
[421367451,1777503031000,-250.0,0.00013,2]
[421367453,1777503031000,-285.0,0.00026,10]
[421367454,1777503031000,-3200.98862681,0.00026,10]
[421367456,1777503031000,-162.31979731,0.00026843,2]
[421367458,1777503031000,-1000.0,0.00027398,2]
[421367452,1777503031000,-1150.0,0.00026,10]
[421367460,1777503031000,-238.73224139,0.00027881,7]
[421367459,1777503031000,-1000.0,0.00027871,7]
[421367462,1777503031000,-166.66,0.00027892,30]
[421367461,1777503031000,-761.26775861,0.00027881,7]
[421367463,1777503031000,-1000.0,0.00028345,30]
[421367464,1777503031000,-232.57683918,0.00028364,30]
[421367457,1777503031000,-507.0,0.00027137,2]
[421367467,1777503032000,-166.66,0.0002848,30]
[421367466,1777503032000,-360.42316082,0.00028364,30]
[421367468,1777503032000,-564.93567825,0.00028892,2]
[421367465,1777503032000,-407.0,0.00028364,30]
[421367527,1777503038000,-500.0,0.00027398,2]
[421367529,1777503038000,-1000.0,0.000279,7]
[421367530,1777503038000,-1000.0,0.00028403,30]
[421367531,1777503038000,-1435.06432175,0.00028892,2]
[421367533,1777503038000,-166.66,0.00029067,30]
[421367532,1777503038000,-1000.0,0.00028906,2]
[421367534,1777503038000,-200.0,0.000295,2]
[421367528,1777503038000,-500.0,0.00027398,2]
[421367536,1777503038000,-500.0,0.00029589,2]
[421367543,1777503038000,-66116.81108479,0.0003,20]
[421367539,1777503038000,-2726.8,0.0002999,10]
[421367541,1777503038000,-3547.86,0.0002999,10]
[421367535,1777503038000,-150.0,0.00029534,2]
[421367538,1777503038000,-600.52912403,0.00029946,2]
[421367542,1777503038000,-544.97481883,0.00029999,2]
[421367540,1777503038000,-4257.44,0.0002999,10]
[421367537,1777503038000,-166.66,0.00029654,30]
[421367574,1777503040000,-1873.42176908,0.0003,20]
[421367575,1777503040000,-3343.86620758,0.0003,20]
[421367573,1777503040000,-428.53781818,0.0003,20]
[421367576,1777503040000,-503.33128176,0.0003,20]
[421367595,1777503045000,-40831.07504,0.0003,20]
[421367593,1777503045000,-2956.55,0.0002999,10]
[421367594,1777503045000,-4500.58294981,0.0003,20]
[421367632,1777503329000,529.55210144,0.000284,120]
[421367633,1777503373000,829.44,0.00029013,120]
[421367634,1777503624000,254.66,0.00030137,120]
[421367635,1777503649000,377.33,0.00030137,120]
[421367641,1777503976000,1000.0,0.00027799,120]
[421367642,1777504023000,4488.62066878,0.00025011,120]
[421367643,1777504024000,440.23373584,0.00025011,120]
[421367644,1777504154000,936.44,0.00027207,120]
[421367651,1777504231000,-26.04612877,0.00026135,2]
[421367652,1777504231000,-124.90601216,0.00026135,2]
[421367650,1777504231000,-2445.950878,0.00026004,2]
[421367648,1777504231000,-300.0,0.00024848,2]
[421367649,1777504231000,-300.0,0.00025011,2]
[421367647,1777504231000,-580.79303503,0.00022737,7]
[421367657,1777504232000,-442.9829572,0.00026998,2]
[421367653,1777504232000,-166.66,0.0002696,30]
[421367654,1777504232000,-204.6296951,0.00026998,2]
[421367656,1777504232000,-552.3873477,0.00026998,2]
[421367662,1777504232000,-1305.0,0.00027,10]
[421367660,1777504232000,-239.0,0.00026999,2]
[421367663,1777504232000,-267.0,0.00027,10]
[421367659,1777504232000,-166.776,0.00026999,15]
[421367661,1777504232000,-11358.42355338,0.00027,10]
[421367658,1777504232000,-954.675,0.00026999,15]
[421367665,1777504238000,-269.17316,0.00027,10]
[421367664,1777504238000,-505.0,0.00027,10]
[421367666,1777504238000,-36295.40328662,0.00027,10]
[421367669,1777504238000,-1000.0,0.00027398,2]
[421367674,1777504238000,-2000.0,0.00028003,2]
[421367673,1777504238000,-200.0,0.00028003,2]
[421367672,1777504238000,-1000.0,0.00027854,7]
[421367668,1777504238000,-2500.0,0.000273,2]
[421367667,1777504238000,-506.0,0.00027137,2]
[421367675,1777504238000,-1004.31449021,0.0002805,2]
[421367670,1777504238000,-166.66,0.00027527,30]
[421367677,1777504238000,-150.0,0.0002829,2]
[421367678,1777504238000,-1000.0,0.0002831,30]
[421367685,1777504238000,-50453.89472444,0.000285,4]
[421367684,1777504238000,-1710.97,0.0002849,10]
[421367683,1777504238000,-2053.16,0.0002849,10]
[421367682,1777504238000,-2463.8,0.0002849,10]
[421367671,1777504238000,-5000.0,0.00027799,2]
[421367679,1777504238000,-342.75961585,0.000284,83]
[421367680,1777504238000,-525.46298357,0.0002845,2]
[421367686,1777504238000,-403362.78201984,0.000285,2]
[421367681,1777504238000,-1367.15813336,0.0002849,3]
[421367676,1777504238000,-166.66,0.00028095,30]
[421367725,1777504240000,-655.44057045,0.000285,2]
[421367726,1777504240000,-1425.81,0.0002849,10]
[421367727,1777504240000,-374.19,0.000285,2]
[421367753,1777504243000,-16344.75620969,0.000285,2]
[421367747,1777504243000,-975.68407284,0.00027854,7]
[421367749,1777504243000,-937.66210983,0.0002831,30]
[421367748,1777504243000,-17.74584014,0.0002831,30]
[421367745,1777504243000,-1000.0,0.00027398,2]
[421367746,1777504243000,-24.31592716,0.00027854,7]
[421367751,1777504243000,-44.59205003,0.0002831,30]
[421367757,1777504246000,-12330.60206853,0.000285,2]